fUST/lending_fUST_20260117
["ID","MTS","AMOUNT","RATE_DAILY","PERIOD"]
[402342139,1768661452943,-782.68,0.00016438,3]
[402342140,1768661452952,-743.81,0.00016438,3]
[402342143,1768661452962,-500.0,0.00016438,3]
[402342144,1768661452972,-1016.78,0.00016438,3]
[402342146,1768661452981,-500.0,0.00016438,3]
[402342149,1768661452991,-500.0,0.00016438,3]
[402342151,1768661453000,-500.0,0.00016438,3]
[402342153,1768661453010,-500.0,0.00016438,3]
[402342155,1768661453019,-938.18,0.00016438,3]
[402342157,1768661453030,-638.34,0.00016438,3]
[402342159,1768661453039,-1542.82,0.00016438,3]
[402342161,1768661453049,-500.0,0.00016438,3]
[402342163,1768661453058,-500.0,0.00016438,3]
[402342165,1768661453068,-500.0,0.00016438,3]
[402342167,1768661453078,-500.0,0.00016438,3]
[402342169,1768661453087,-500.0,0.00016438,3]
[402342171,1768661453097,-1046.6,0.00016438,3]
[402342173,1768661453107,-8462.21,0.00016438,3]
[402342175,1768661453116,-500.0,0.00016438,3]
[402342177,1768661453128,-500.0,0.00016438,3]
[402342179,1768661453138,-900.45,0.00016438,3]
[402342181,1768661453148,-500.0,0.00016438,3]
[402342183,1768661453158,-500.0,0.00016438,3]
[402342185,1768661453169,-1025.21,0.00016438,3]
[402342187,1768661453178,-427.39365242,0.00016438,3]
[402342189,1768661453188,-500.0,0.00016438,3]
[402342192,1768661453198,-500.0,0.00016438,3]
[402342194,1768661453209,-467.49360859,0.00016438,3]
[402342196,1768661453218,-1701.87,0.00016438,3]
[402342198,1768661453229,-500.0,0.00016438,3]
[402342200,1768661453239,-500.0,0.00016438,3]
[402342202,1768661453249,-500.0,0.00016438,3]
[402342204,1768661453259,-500.0,0.00016438,3]
[402342206,1768661453269,-500.0,0.00016438,3]
[402342208,1768661453279,-500.0,0.00016438,3]
[402342210,1768661453289,-952.05,0.00016438,3]
[402342212,1768661453299,-500.0,0.00016438,3]
[402342214,1768661453308,-500.0,0.00016438,3]
[402342216,1768661453317,-500.0,0.00016438,3]
[402342218,1768661453327,-1296.31,0.00016438,3]
[402342220,1768661453337,-500.0,0.00016438,3]
[402342222,1768661453347,-500.0,0.00016438,3]
[402342224,1768661453357,-500.0,0.00016438,3]
[402342226,1768661453367,-790.38,0.00016438,3]
[402342228,1768661453376,-500.0,0.00016438,3]
[402342230,1768661453386,-500.0,0.00016438,3]
[402342232,1768661453395,-500.0,0.00016438,3]
[402342234,1768661453405,-500.0,0.00016438,3]
[402342236,1768661453415,-598.89865208,0.00016438,3]
[402342238,1768661453424,-500.0,0.00016438,3]
[402342240,1768661453434,-1392.33,0.00016438,3]
[402342242,1768661453444,-500.0,0.00016438,3]
[402342244,1768661453453,-500.0,0.00016438,3]
[402342246,1768661453462,-589.43,0.00016438,3]
[402342248,1768661453471,-2164.81,0.00016438,3]
[402342250,1768661453482,-500.0,0.00016438,3]
[402342252,1768661453491,-500.0,0.00016438,3]
[402342255,1768661453501,-855.31,0.00016438,3]
[402342257,1768661453511,-500.0,0.00016438,3]
[402342258,1768661453520,-500.0,0.00016438,3]
[402342261,1768661453530,-500.0,0.00016438,3]
[402342263,1768661453539,-791.1,0.00016438,3]
[402342265,1768661453548,-281.28402588,0.00016438,3]
[402342267,1768661453558,-820.75,0.00016438,3]
[402342269,1768661453568,-500.0,0.00016438,3]
[402342271,1768661453577,-500.0,0.00016438,3]
[402342273,1768661453587,-500.0,0.00016438,3]
[402342275,1768661453596,-500.0,0.00016438,3]
[402342277,1768661453606,-500.0,0.00016438,3]
[402342279,1768661453615,-500.0,0.00016438,3]
[402342281,1768661453625,-500.0,0.00016438,3]
[402342283,1768661453635,-686.29,0.00016438,3]
[402342285,1768661453645,-1162.52,0.00016438,3]
[402342287,1768661453654,-500.0,0.00016438,3]
[402342289,1768661453664,-500.0,0.00016438,3]
[402342291,1768661453674,-332.91217118,0.00016438,3]
[402342293,1768661453684,-659.27,0.00016438,3]
[402342295,1768661453693,-500.0,0.00016438,3]
[402342297,1768661453703,-500.0,0.00016438,3]
[402342299,1768661453717,-583.05,0.00016438,3]
[402342302,1768661453727,-500.0,0.00016438,3]
[402342304,1768661453738,-500.0,0.00016438,3]
[402342306,1768661453750,-500.0,0.00016438,3]
[402342308,1768661453761,-500.0,0.00016438,3]
[402342310,1768661453770,-500.0,0.00016438,3]
[402342312,1768661453781,-450.64316952,0.00016438,3]
[402342314,1768661453791,-500.0,0.00016438,3]
[402342315,1768661453800,-531.2,0.00016438,3]
[402342318,1768661453810,-546.78,0.00016438,3]
[402342320,1768661453820,-500.0,0.00016438,3]
[402342322,1768661453830,-500.0,0.00016438,3]
[402342324,1768661453841,-500.0,0.00016438,3]
[402342326,1768661453851,-500.0,0.00016438,3]
[402342328,1768661453861,-2433.28,0.00016438,3]
[402342330,1768661453870,-523.83,0.00016438,3]
[402342332,1768661453880,-500.0,0.00016438,3]
[402342334,1768661453890,-500.0,0.00016438,3]
[402342336,1768661453900,-500.0,0.00016438,3]
[402342338,1768661453910,-536.50517922,0.00016438,3]
[402342340,1768661453920,-605.26,0.00016438,3]
[402342342,1768661453929,-500.0,0.00016438,3]
[402342344,1768661453939,-500.0,0.00016438,3]
[402342346,1768661453949,-1203.0,0.00016438,3]
[402342348,1768661453959,-514.47,0.00016438,3]
[402342350,1768661453969,-500.0,0.00016438,3]
[402342352,1768661453979,-1673.57,0.00016438,3]
[402342354,1768661453989,-513.00114578,0.00016438,3]
[402342356,1768661454000,-500.0,0.00016438,3]
[402342358,1768661454010,-602.45,0.00016438,3]
[402342360,1768661454020,-500.0,0.00016438,3]
[402342362,1768661454030,-3211.22,0.00016438,3]
[402342364,1768661454040,-500.0,0.00016438,3]
[402342366,1768661454050,-1140.99,0.00016438,3]
[402342368,1768661454061,-1139.13,0.00016438,3]
[402342370,1768661454070,-500.0,0.00016438,3]
[402342372,1768661454081,-500.0,0.00016438,3]
[402342374,1768661454091,-500.0,0.00016438,3]
[402342376,1768661454101,-500.0,0.00016438,3]
[402342378,1768661454111,-500.0,0.00016438,3]
[402342380,1768661454120,-500.0,0.00016438,3]
[402342382,1768661454130,-500.0,0.00016438,3]
[402342384,1768661454140,-500.0,0.00016438,3]
[402342387,1768661454150,-500.0,0.00016438,3]
[402342388,1768661454159,-500.0,0.00016438,3]
[402342391,1768661454170,-500.0,0.00016438,3]
[402342393,1768661454179,-601.82,0.00016438,3]
[402342395,1768661454188,-500.0,0.00016438,3]
[402342397,1768661454198,-500.0,0.00016438,3]
[402342399,1768661454207,-500.0,0.00016438,3]
[402342401,1768661454216,-500.0,0.00016438,3]
[402342403,1768661454225,-766.87,0.00016438,3]
[402342405,1768661454234,-500.0,0.00016438,3]
[402342407,1768661454244,-500.0,0.00016438,3]
[402342409,1768661454253,-1439.36,0.00016438,3]
[402342411,1768661454263,-500.0,0.00016438,3]
[402342413,1768661454275,-500.0,0.00016438,3]
[402342415,1768661454284,-500.0,0.00016438,3]
[402342418,1768661454300,-444.83809808,0.00016438,3]
[402342421,1768661454317,-500.0,0.00016438,3]
[402342423,1768661454337,-500.0,0.00016438,3]
[402342426,1768661454352,-1279.22,0.00016438,3]
[402342429,1768661454366,-500.0,0.00016438,3]
[402342431,1768661454381,-500.0,0.00016438,3]
[402342434,1768661454395,-1550.67,0.00016438,3]
[402342436,1768661454410,-500.0,0.00016438,3]
[402342439,1768661454425,-500.0,0.00016438,3]
[402342442,1768661454441,-501.86,0.00016438,3]
[402342445,1768661454454,-500.0,0.00016438,3]
[402342447,1768661454470,-500.0,0.00016438,3]
[402342450,1768661454482,-2019.61,0.00016438,3]
[402342452,1768661454497,-1079.9,0.00016438,3]
[402342455,1768661454511,-928.59,0.00016438,3]
[402342457,1768661454525,-500.0,0.00016438,3]
[402342459,1768661454535,-567.14,0.00016438,3]
[402342462,1768661454548,-500.0,0.00016438,3]
[402342464,1768661454561,-500.0,0.00016438,3]
[402342467,1768661454575,-500.0,0.00016438,3]
[402342469,1768661454590,-923.36,0.00016438,3]
[402342472,1768661454605,-1739.47,0.00016438,3]
[402342475,1768661454620,-605.62,0.00016438,3]
[402342477,1768661454634,-1493.1,0.00016438,3]
[402342479,1768661454644,-500.0,0.00016438,3]
[402342481,1768661454657,-500.0,0.00016438,3]
[402342484,1768661454671,-500.0,0.00016438,3]
[402342487,1768661454685,-611.86349143,0.00016438,3]
[402342489,1768661454698,-1147.52,0.00016438,3]
[402342491,1768661454712,-500.0,0.00016438,3]
[402342493,1768661454724,-500.0,0.00016438,3]
[402342496,1768661454738,-500.0,0.00016438,3]
[402342498,1768661454750,-1469.78,0.00016438,3]
[402342500,1768661454762,-500.0,0.00016438,3]
[402342502,1768661454775,-588.68,0.00016438,3]
[402342505,1768661454787,-603.4,0.00016438,3]
[402342507,1768661454799,-1684.82,0.00016438,3]
[402342510,1768661454812,-500.0,0.00016438,3]
[402342512,1768661454824,-532.55606123,0.00016438,3]
[402342514,1768661454837,-500.0,0.00016438,3]
[402342516,1768661454849,-1200.0,0.00016438,2]
[402342519,1768661454865,-565.59190615,0.00016438,3]
[402342521,1768661454877,-500.0,0.00016438,3]
[402342524,1768661454890,-602.36,0.00016438,3]
[402342526,1768661454902,-500.0,0.00016438,3]
[402342528,1768661454914,-500.0,0.00016438,3]
[402342530,1768661454927,-500.0,0.00016438,3]
[402342533,1768661454939,-500.0,0.00016438,3]
[402342535,1768661454951,-854.67,0.00016438,3]
[402342537,1768661454963,-500.0,0.00016438,3]
[402342540,1768661454975,-526.3812206,0.00016438,3]
[402342542,1768661454987,-500.0,0.00016438,3]
[402342544,1768661454999,-500.0,0.00016438,3]
[402342547,1768661455012,-500.0,0.00016438,3]
[402342549,1768661455024,-500.0,0.00016438,3]
[402342551,1768661455037,-1511.03,0.00016438,3]
[402342553,1768661455049,-500.0,0.00016438,3]
[402342556,1768661455062,-500.0,0.00016438,3]
[402342558,1768661455074,-500.0,0.00016438,3]
[402342561,1768661455085,-500.0,0.00016438,3]
[402342563,1768661455097,-500.0,0.00016438,3]
[402342565,1768661455109,-207.01,0.00016438,2]
[402342567,1768661455121,-500.0,0.00016438,3]
[402342570,1768661455133,-1325.07,0.00016438,3]
[402342572,1768661455144,-1492.69,0.00016438,3]
[402342574,1768661455156,-500.0,0.00016438,3]
[402342576,1768661455168,-500.0,0.00016438,3]
[402342579,1768661455180,-500.0,0.00016438,3]
[402342581,1768661455191,-1498.4,0.00016438,3]
[402342583,1768661455204,-500.0,0.00016438,3]
[402342585,1768661455215,-500.0,0.00016438,3]
[402342588,1768661455228,-500.0,0.00016438,3]
[402342591,1768661455246,-1557.22,0.00016438,3]
[402342593,1768661455258,-500.0,0.00016438,3]
[402342595,1768661455270,-500.0,0.00016438,3]
[402342598,1768661455282,-610.02,0.00016438,3]
[402342600,1768661455294,-500.0,0.00016438,3]
[402342602,1768661455305,-500.0,0.00016438,3]
[402342605,1768661455317,-435.20636976,0.00016438,3]
[402342607,1768661455328,-500.0,0.00016438,3]
[402342609,1768661455341,-500.0,0.00016438,3]
[402342611,1768661455352,-500.0,0.00016438,3]
[402342614,1768661455365,-949.8,0.00016438,3]
[402342616,1768661455377,-575.79,0.00016438,3]
[402342618,1768661455389,-1327.43,0.00016438,3]
[402342621,1768661455401,-597.75,0.00016438,3]
[402342623,1768661455414,-500.0,0.00016438,3]
[402342626,1768661455426,-500.0,0.00016438,3]
[402342628,1768661455438,-909.15,0.00016438,3]
[402342630,1768661455449,-789.61,0.00016438,3]
[402342632,1768661455460,-500.0,0.00016438,3]
[402342635,1768661455472,-526.97,0.00016438,3]
[402342637,1768661455484,-524.77564492,0.00016438,3]
[402342639,1768661455496,-500.0,0.00016438,3]
[402342641,1768661455509,-1837.73,0.00016438,3]
[402342642,1768661455521,-533.67555497,0.00016438,3]
[402342643,1768661455533,-1798.52,0.00016438,3]
[402342644,1768661455545,-151.0,0.00016438,2]
[402342645,1768661455557,-500.0,0.00016438,3]
[402342646,1768661455568,-500.0,0.00016438,3]
[402342647,1768661455581,-151.0,0.00016438,2]
[402342648,1768661455592,-151.0,0.00016438,2]
[402342649,1768661455603,-1605.78,0.00016438,3]
[402342650,1768661455615,-500.0,0.00016438,2]
[402342652,1768661455627,-3000.0,0.00016438,2]
[402342654,1768661455638,-1613.0,0.00016479,2]
[402342656,1768661455650,-383.39674053,0.0001657,17]
[402342659,1768661455662,-180.10446059,0.00016689,2]
[402342661,1768661455673,-212.54773642,0.00016711,2]
[402342663,1768661455685,-1331.60505822,0.00016712,3]
[402342665,1768661455697,-326.22,0.00016712,3]
[402342668,1768661455711,-500.0,0.00016712,3]
[402342670,1768661455723,-500.0,0.00016712,3]
[402342672,1768661455735,-500.0,0.00016712,3]
[402342674,1768661455746,-500.0,0.00016712,3]
[402342676,1768661455759,-500.0,0.00016712,3]
[402342679,1768661455771,-500.0,0.00016712,3]
[402342681,1768661455785,-500.0,0.00016712,3]
[402342683,1768661455798,-500.0,0.00016712,3]
[402342686,1768661455809,-1160.51,0.00016712,3]
[402342688,1768661455821,-500.0,0.00016712,3]
[402342690,1768661455835,-500.0,0.00016712,3]
[402342693,1768661455847,-500.0,0.00016712,3]
[402342695,1768661455858,-500.0,0.00016712,3]
[402342697,1768661455870,-500.0,0.00016712,3]
[402342699,1768661455882,-536.13,0.00016712,3]
[402342701,1768661455894,-1068.9,0.00016712,3]
[402342704,1768661455906,-246.0,0.00016712,3]
[402342706,1768661455918,-528.48,0.00016712,3]
[402342708,1768661455929,-736.46,0.00016712,3]
[402342710,1768661455941,-856.35,0.00016712,3]
[402342713,1768661455953,-500.0,0.00016712,3]
[402342715,1768661455965,-500.0,0.00016712,3]
[402342717,1768661455976,-552.75,0.00016712,3]
[402342719,1768661455988,-500.0,0.00016712,3]
[402342722,1768661456000,-500.0,0.00016712,3]
[402342724,1768661456012,-500.0,0.00016712,3]
[402342726,1768661456023,-734.5,0.00016712,3]
[402342728,1768661456035,-602.81,0.00016712,3]
[402342731,1768661456048,-1514.49,0.00016712,3]
[402342733,1768661456059,-513.87,0.00016712,3]
[402342735,1768661456071,-500.0,0.00016712,3]
[402342737,1768661456082,-500.0,0.00016712,3]
[402342739,1768661456094,-500.0,0.00016712,3]
[402342742,1768661456106,-1059.32,0.00016712,3]
[402342744,1768661456117,-675.47,0.00016712,3]
[402342746,1768661456129,-1566.12,0.00016712,3]
[402342749,1768661456141,-500.0,0.00016712,3]
[402342751,1768661456152,-500.0,0.00016712,3]
[402342753,1768661456163,-500.0,0.00016712,3]
[402342755,1768661456174,-500.0,0.00016712,3]
[402342757,1768661456186,-500.0,0.00016712,3]
[402342760,1768661456197,-500.0,0.00016712,3]
[402342762,1768661456208,-500.0,0.00016712,3]
[402342764,1768661456220,-815.89,0.00016712,3]
[402342766,1768661456232,-500.0,0.00016712,3]
[402342769,1768661456243,-838.97,0.00016712,3]
[402342771,1768661456255,-500.0,0.00016712,3]
[402342773,1768661456266,-500.0,0.00016712,3]
[402342775,1768661456278,-510.09347373,0.00016712,3]
[402342777,1768661456290,-500.0,0.00016712,3]
[402342780,1768661456302,-500.0,0.00016712,3]
[402342782,1768661456314,-524.34,0.00016712,3]
[402342784,1768661456326,-688.39,0.00016712,3]
[402342786,1768661456337,-500.0,0.00016712,3]
[402342789,1768661456349,-1056.42,0.00016712,3]
[402342791,1768661456363,-500.0,0.00016712,3]
[402342793,1768661456374,-1495.48,0.00016712,3]
[402342795,1768661456387,-500.0,0.00016712,3]
[402342798,1768661456398,-500.0,0.00016712,3]
[402342800,1768661456410,-500.0,0.00016712,3]
[402342802,1768661456422,-441.88906637,0.00016712,3]
[402342804,1768661456434,-752.62,0.00016712,3]
[402342806,1768661456445,-500.0,0.00016712,3]
[402342809,1768661456458,-500.0,0.00016712,3]
[402342811,1768661456469,-500.0,0.00016712,3]
[402342813,1768661456481,-500.0,0.00016712,3]
[402342815,1768661456493,-501.51,0.00016712,3]
[402342817,1768661456504,-500.0,0.00016712,2]
[402342819,1768661456516,-500.0,0.00016712,3]
[402342822,1768661456528,-500.0,0.00016712,3]
[402342824,1768661456539,-1052.24,0.00016712,3]
[402342826,1768661456551,-500.0,0.00016712,3]
[402342828,1768661456563,-304.69534223,0.00016712,3]
[402342831,1768661456575,-1051.05,0.00016712,3]
[402342833,1768661456588,-601.51,0.00016712,3]
[402342835,1768661456600,-500.0,0.00016712,3]
[402342837,1768661456611,-583.92,0.00016712,3]
[402342840,1768661456623,-548.98,0.00016712,3]
[402342842,1768661456635,-560.01,0.00016712,3]
[402342844,1768661456646,-481.66364673,0.00016712,3]
[402342846,1768661456658,-500.0,0.00016712,3]
[402342849,1768661456670,-500.0,0.00016712,3]
[402342851,1768661456682,-500.0,0.00016712,3]
[402342853,1768661456694,-545.8035631,0.00016712,3]
[402342855,1768661456706,-500.0,0.00016712,3]
[402342858,1768661456719,-936.7,0.00016712,3]
[402342860,1768661456731,-500.0,0.00016712,3]
[402342862,1768661456743,-500.0,0.00016712,3]
[402342864,1768661456756,-1336.79,0.00016712,3]
[402342866,1768661456774,-151.0,0.00016712,2]
[402342869,1768661456787,-500.0,0.00016712,3]
[402342871,1768661456798,-500.0,0.00016712,3]
[402342873,1768661456810,-500.0,0.00016712,3]
[402342876,1768661456823,-500.0,0.00016712,3]
[402342878,1768661456835,-525.87912065,0.00016712,3]
[402342880,1768661456847,-559.76,0.00016712,3]
[402342882,1768661456859,-500.0,0.00016712,3]
[402342884,1768661456870,-500.0,0.00016712,3]
[402342887,1768661456882,-500.0,0.00016712,3]
[402342889,1768661456893,-612.99,0.00016712,3]
[402342891,1768661456902,-699.00182338,0.00016712,3]
[402342893,1768661456911,-500.0,0.00016712,3]
[402342895,1768661456921,-500.0,0.00016712,3]
[402342939,1768661457317,-500.0,0.00016712,3]
[402342944,1768661457351,-623.25,0.00016712,3]
[402342947,1768661457371,-500.0,0.00016712,3]
[402342949,1768661457381,-500.0,0.00016712,3]
[402342951,1768661457391,-500.0,0.00016712,3]
[402342953,1768661457404,-500.0,0.00016712,3]
[402342955,1768661457414,-500.0,0.00016712,3]
[402342957,1768661457424,-500.0,0.00016712,3]
[402342960,1768661457436,-500.0,0.00016712,3]
[402342961,1768661457445,-500.0,0.00016712,3]
[402342964,1768661457455,-500.0,0.00016712,3]
[402342966,1768661457465,-500.0,0.00016712,3]
[402342968,1768661457475,-500.0,0.00016712,3]
[402342970,1768661457484,-500.0,0.00016712,3]
[402342971,1768661457494,-500.0,0.00016712,3]
[402342974,1768661457504,-500.0,0.00016712,3]
[402342976,1768661457514,-1318.04,0.00016712,3]
[402342977,1768661457524,-831.21,0.00016712,3]
[402342980,1768661457534,-500.0,0.00016712,3]
[402342982,1768661457545,-500.0,0.00016712,3]
[402342984,1768661457555,-500.0,0.00016712,3]
[402342985,1768661457567,-500.0,0.00016712,3]
[402342987,1768661457576,-1046.42,0.00016712,3]
[402342990,1768661457586,-697.09,0.00016712,3]
[402342991,1768661457595,-500.0,0.00016712,3]
[402342992,1768661457604,-403.87472748,0.00016712,3]
[402342993,1768661457612,-500.0,0.00016712,3]
[402342994,1768661457621,-1072.24,0.00016712,3]
[402342995,1768661457630,-1000.0,0.00016712,2]
[402342996,1768661457639,-500.0,0.00016712,3]
[402342997,1768661457648,-500.0,0.00016712,3]
[402342998,1768661457657,-500.0,0.00016712,3]
[402342999,1768661457667,-500.0,0.00016712,3]
[402343000,1768661457677,-500.0,0.00016712,3]
[402343001,1768661457685,-500.0,0.00016712,3]
[402343002,1768661457694,-500.0,0.00016712,3]
[402343003,1768661457703,-500.0,0.00016712,3]
[402343004,1768661457715,-500.0,0.00016712,3]
[402343005,1768661457724,-1296.3,0.00016712,3]
[402343006,1768661457733,-500.0,0.00016712,3]
[402343007,1768661457742,-500.0,0.00016712,3]
[402343008,1768661457751,-500.0,0.00016712,3]
[402343009,1768661457760,-500.0,0.00016712,3]
[402343010,1768661457769,-500.0,0.00016712,3]
[402343011,1768661457779,-500.0,0.00016712,3]
[402343012,1768661457788,-500.0,0.00016712,3]
[402343013,1768661457797,-500.0,0.00016712,3]
[402343014,1768661457806,-1576.93,0.00016712,3]
[402343015,1768661457815,-500.0,0.00016712,2]
[402343016,1768661457823,-586.6276719,0.00016712,3]
[402343017,1768661457832,-500.0,0.00016712,3]
[402343018,1768661457841,-500.0,0.00016712,3]
[402343019,1768661457850,-500.0,0.00016712,3]
[402343020,1768661457860,-500.0,0.00016712,2]
[402343021,1768661457870,-500.0,0.00016712,3]
[402343022,1768661457879,-500.0,0.00016712,3]
[402343024,1768661457889,-500.0,0.00016712,3]
[402343025,1768661457899,-500.0,0.00016712,3]
[402343027,1768661457908,-500.0,0.00016712,3]
[402343029,1768661457918,-500.0,0.00016712,3]
[402343031,1768661457927,-1006.11,0.00016712,3]
[402343033,1768661457936,-706.14,0.00016712,3]
[402343035,1768661457946,-500.0,0.00016712,2]
[402343037,1768661457955,-1121.76,0.00016712,3]
[402343039,1768661457964,-507.06,0.00016712,3]
[402343041,1768661457973,-1150.76,0.00016712,3]
[402343043,1768661457982,-500.0,0.00016712,3]
[402343045,1768661457991,-500.0,0.00016712,3]
[402343046,1768661457999,-500.0,0.00016712,3]
[402343048,1768661458009,-500.0,0.00016712,3]
[402343050,1768661458018,-567.58,0.00016712,3]
[402343052,1768661458027,-474.92477012,0.00016712,3]
[402343054,1768661458037,-1124.68,0.00016712,3]
[402343056,1768661458046,-257.23483558,0.00016712,3]
[402343058,1768661458055,-1039.3,0.00016712,3]
[402343060,1768661458065,-500.0,0.00016712,3]
[402343062,1768661458074,-1245.86,0.00016712,3]
[402343064,1768661458083,-500.0,0.00016712,3]
[402343066,1768661458093,-500.0,0.00016712,3]
[402343068,1768661458103,-500.0,0.00016712,3]
[402343070,1768661458112,-500.0,0.00016712,3]
[402343072,1768661458122,-500.0,0.00016712,3]
[402343074,1768661458131,-500.0,0.00016712,3]
[402343076,1768661458140,-500.0,0.00016712,3]
[402343078,1768661458150,-500.0,0.00016712,3]
[402343080,1768661458159,-899.3,0.00016712,3]
[402343082,1768661458168,-500.0,0.00016712,3]
[402343084,1768661458177,-548.56,0.00016712,3]
[402343086,1768661458186,-500.0,0.00016712,3]
[402343088,1768661458195,-500.0,0.00016712,3]
[402343090,1768661458204,-517.81430866,0.00016712,3]
[402343092,1768661458213,-500.0,0.00016712,3]
[402343094,1768661458223,-950.57,0.00016712,3]
[402343096,1768661458236,-159.17857658,0.00016712,3]
[402343098,1768661458246,-500.0,0.00016712,3]
[402343100,1768661458255,-875.06,0.00016712,3]
[402343102,1768661458264,-500.0,0.00016712,3]
[402343104,1768661458274,-1443.97,0.00016712,3]
[402343106,1768661458283,-500.0,0.00016712,3]
[402343108,1768661458292,-1864.45,0.00016712,3]
[402343110,1768661458302,-500.0,0.00016712,3]
[402343112,1768661458311,-500.0,0.00016712,3]
[402343114,1768661458321,-500.0,0.00016712,3]
[402343116,1768661458330,-500.0,0.00016712,3]
[402343118,1768661458339,-807.18,0.00016712,3]
[402343120,1768661458348,-1290.77,0.00016712,3]
[402343122,1768661458359,-500.0,0.00016712,3]
[402343124,1768661458368,-574.969696,0.00016712,3]
[402343126,1768661458377,-500.0,0.00016712,3]
[402343128,1768661458386,-1873.13,0.00016712,3]
[402343130,1768661458395,-541.31799653,0.00016712,3]
[402343132,1768661458404,-500.0,0.00016712,3]
[402343134,1768661458413,-500.0,0.00016712,3]
[402343136,1768661458422,-500.0,0.00016712,3]
[402343138,1768661458431,-216.1398381,0.00016712,3]
[402343140,1768661458441,-916.76,0.00016712,3]
[402343142,1768661458451,-500.0,0.00016712,3]
[402343144,1768661458461,-500.0,0.00016712,3]
[402343146,1768661458470,-500.0,0.00016712,3]
[402343148,1768661458479,-507.22,0.00016712,3]
[402343150,1768661458488,-500.0,0.00016712,3]
[402343152,1768661458499,-500.0,0.00016712,3]
[402343154,1768661458508,-500.0,0.00016712,3]
[402343156,1768661458518,-500.0,0.00016712,3]
[402343158,1768661458527,-821.87,0.00016712,3]
[402343159,1768661458537,-987.45,0.00016712,3]
[402343161,1768661458547,-500.0,0.00016712,3]
[402343163,1768661458556,-711.39,0.00016712,3]
[402343165,1768661458566,-789.58,0.00016712,3]
[402343167,1768661458574,-1022.81,0.00016712,3]
[402343169,1768661458584,-1195.09,0.00016712,3]
[402343171,1768661458593,-500.0,0.00016712,3]
[402343173,1768661458602,-1009.98,0.00016712,3]
[402343175,1768661458611,-672.16,0.00016712,3]
[402343177,1768661458620,-500.0,0.00016712,3]
[402343179,1768661458629,-500.0,0.00016712,3]
[402343181,1768661458638,-877.48,0.00016712,3]
[402343183,1768661458647,-642.32,0.00016712,3]
[402343185,1768661458656,-2039.69,0.00016712,3]
[402343187,1768661458665,-508.58,0.00016712,3]
[402343189,1768661458674,-567.29,0.00016712,3]
[402343191,1768661458683,-523.41303574,0.00016712,3]
[402343193,1768661458692,-500.0,0.00016712,3]
[402343194,1768661458702,-500.0,0.00016712,3]
[402343196,1768661458716,-1802.92,0.00016712,3]
[402343198,1768661458725,-500.0,0.00016712,3]
[402343200,1768661458734,-500.0,0.00016712,3]
[402343202,1768661458744,-500.0,0.00016712,3]
[402343204,1768661458754,-659.62,0.00016712,3]